bitfinex-derivatives/quotes_BNBF0:USTF0_20241230
["timestamp","ask_amount","ask_price","bid_price","bid_amount"]
[1735527219277,0.2868247,697.29,696.11,1.0749091]
[1735527219984,0.2868247,697.29,696.22,1.0749091]
[1735527221086,0.2868247,697.29,696.23,1.0749091]
[1735527222485,0.2868247,697.29,695.94,1.28989093]
[1735527222486,0.2868247,697.29,696.29,1.0749091]
[1735527224889,0.2868247,697.29,696.31,1.0749091]
[1735527225790,0.2868247,697.29,696.11,1.0749091]
[1735527226890,0.2868247,697.29,696.12,1.0749091]
[1735527229290,0.2868247,697.29,696.11,1.0749091]
[1735527230190,0.2868247,697.29,696.1,1.0749091]
[1735527231191,0.2868247,697.29,696.09,1.0749091]
[1735527232395,0.2868247,697.29,696.13,1.0749091]
[1735527234800,0.2868247,697.29,696.1,1.0749091]
[1735527235795,0.2868247,697.29,695.84,1.9324234]
[1735527235796,0.2868247,697.29,696.08,1.0749091]
[1735527239599,0.2868247,697.29,696.02,1.0749091]
[1735527240801,0.2868247,697.29,695.78,1.0749091]
[1735527243799,0.2868247,697.29,695.65,1.0749091]
[1735527244802,0.2868247,697.29,695.0,2.19460609]
[1735527244803,0.2868247,697.29,695.72,1.0749091]
[1735527245801,0.2868247,697.29,695.65,1.0749091]
[1735527246802,0.2868247,697.29,694.74,2.19460609]
[1735527246803,0.2868247,697.29,695.64,1.0749091]
[1735527247904,0.2868247,697.29,695.71,1.0749091]
[1735527250404,0.2868247,697.29,695.67,1.0749091]
[1735527251205,0.2868247,697.29,695.66,1.0749091]
[1735527252208,0.2868247,697.29,695.82,1.0749091]
[1735527254409,0.2868247,697.29,695.71,1.92946175]
[1735527254410,0.2868247,697.29,695.77,1.0749091]
[1735527255311,0.2868247,697.29,695.8,1.0749091]
[1735527256509,0.2868247,697.29,695.69,1.92946175]
[1735527256510,0.2868247,697.29,695.87,1.0749091]
[1735527259113,0.2868247,697.29,695.88,1.0749091]
[1735527260214,0.2868247,697.29,695.76,1.0749091]
[1735527261116,0.2868247,697.29,695.78,1.0749091]
[1735527262210,0.2868247,697.29,695.81,1.0749091]
[1735527263415,0.2868247,697.29,695.85,1.0749091]
[1735527264715,0.2868247,697.29,695.9,1.0749091]
[1735527265918,0.2868247,697.29,695.91,1.0749091]
[1735527267119,0.2868247,697.29,695.92,1.0749091]
[1735527268216,0.2868247,697.29,695.94,1.0749091]
[1735527269215,0.2868247,697.29,696.2,1.0749091]
[1735527270415,0.2868247,697.29,696.17,1.0749091]
[1735527271421,0.2868247,697.29,696.04,1.0749091]
[1735527272623,0.2868247,697.29,696.03,1.0749091]
[1735527273221,0.2868247,697.29,695.84,1.92633084]
[1735527273519,0.2868247,697.29,695.85,0.28741826]
[1735527273716,0.2868247,697.29,695.85,1.92322325]
[1735527273920,0.2868247,697.29,695.85,0.28741826]
[1735527274317,0.2868247,697.29,695.85,1.92322325]
[1735527274625,0.2868247,697.29,695.99,1.07165867]
[1735527276120,0.2868247,697.29,695.96,1.07165867]
[1735527276321,0.2868247,697.29,695.97,0.2873687]
[1735527280331,0.2868247,697.29,696.07,1.07165867]
[1735527281427,0.2868247,697.29,696.09,1.07165867]
[1735527282233,0.2868247,697.29,696.1,1.07165867]
[1735527284532,0.2868247,697.29,696.11,1.07165867]
[1735527285728,0.2868247,697.29,696.06,1.07165867]
[1735527286834,0.2868247,697.29,696.08,1.07165867]
[1735527288937,0.2868247,697.29,696.11,1.07165867]
[1735527290033,0.2868247,697.29,696.18,1.07165867]
[1735527291037,0.2868247,697.29,696.21,1.07165867]
[1735527292238,0.2868247,697.29,696.28,1.07165867]
[1735527293139,0.2868247,697.29,696.32,1.07165867]
[1735527294136,0.2868247,697.29,696.29,2.99562217]
[1735527294336,0.2868247,697.29,696.3,1.9239635]
[1735527294834,0.2868247,697.29,696.29,1.07165867]
[1735527295436,0.2868247,697.29,696.32,1.07165867]
[1735527296535,0.2868247,697.29,696.35,1.07165867]
[1735527297541,0.2868247,697.29,696.4,1.07165867]
[1735527300136,0.2868247,697.29,696.19,1.62913163]
[1735527300137,0.2868247,697.29,696.38,1.07165867]
[1735527301344,0.2868247,697.29,696.44,1.07165867]
[1735527302043,0.2868247,697.29,696.43,1.07165867]
[1735527303245,0.2868247,697.29,696.45,1.07165867]
[1735527304253,0.2868247,697.29,696.51,1.07165867]
[1735527305350,0.2868247,697.29,696.24,1.91796758]
[1735527305351,0.2868247,697.29,696.53,1.07165867]
[1735527306552,0.2868247,697.29,696.52,1.07165867]
[1735527307354,0.2868247,697.29,696.42,1.07165867]
[1735527307355,0.2868247,697.29,696.5,1.07165867]
[1735527308155,0.2868247,697.29,696.48,1.07165867]
[1735527310350,0.2868247,697.29,696.49,1.07165867]
[1735527311160,0.2868247,697.29,696.47,1.07165867]
[1735527312462,0.2868247,697.29,696.49,1.07165867]
[1735527313161,0.2868247,697.29,696.54,1.07165867]
[1735527315358,0.2868247,697.29,696.53,1.07165867]
[1735527316363,0.2868247,697.29,696.55,1.07165867]
[1735527317061,0.2868247,697.29,696.56,1.07165867]
[1735527318267,0.2868247,697.29,696.24,1.07165867]
[1735527319493,0.2868247,697.29,696.21,1.07165867]
[1735527320477,0.2868247,697.29,696.17,1.07165867]
[1735527322068,0.2868247,697.29,696.05,1.07165867]
[1735527322661,0.2868247,697.29,696.08,1.07165867]
[1735527322867,0.2868247,697.29,696.18,1.07165867]
[1735527324264,0.2868247,697.29,696.14,1.07165867]
[1735527325573,0.2868247,697.29,696.1,1.07165867]
[1735527326668,0.2868247,697.29,696.1,3.5589964]
[1735527327672,0.2868247,697.29,696.12,1.07165867]
[1735527328072,0.2868247,697.29,696.12,2.99576902]
[1735527328271,0.2868247,697.29,696.13,1.92411035]
[1735527328472,0.2868247,697.29,696.12,1.07165867]
[1735527328874,0.2868247,697.29,696.09,1.07165867]
[1735527329976,0.2868247,697.29,696.12,1.07165867]
[1735527330974,0.2868247,697.29,696.1,1.07165867]
[1735527332776,0.2868247,697.29,696.11,1.07165867]
[1735527334076,0.2868247,697.29,696.11,7.34345187]
[1735527334278,0.2868247,697.29,696.14,1.07165867]
[1735527334678,0.2868247,697.29,696.14,4.63136533]
[1735527334879,0.2868247,697.29,696.15,3.55970666]
[1735527335378,0.2868247,697.29,696.16,2.71208654]
[1735527335578,0.2868247,697.29,696.17,3.55970666]
[1735527335977,0.2868247,697.29,696.18,2.71208654]
[1735527336177,0.2868247,697.29,696.19,3.55970666]
[1735527336379,0.2868247,697.29,696.2,2.71208654]
[1735527336580,0.2868247,697.29,696.21,3.55970666]
[1735527337079,0.2868247,697.29,696.22,3.55970666]
[1735527337276,0.2868247,697.29,696.23,3.55970666]
[1735527337481,0.2868247,697.29,696.24,6.27090608]
[1735527337681,0.2868247,697.29,696.25,1.92411035]
[1735527337876,0.2868247,697.29,696.25,4.63530977]
[1735527338181,0.2868247,697.29,696.26,3.55902091]
[1735527338480,0.2868247,697.29,696.27,6.27022033]
[1735527338681,0.2868247,697.29,696.28,3.55902091]
[1735527338882,0.2868247,697.29,696.29,3.55902091]
[1735527339075,0.2868247,697.29,696.3,3.55902091]
[1735527339277,0.2868247,697.29,696.31,3.55902091]
[1735527339478,0.2868247,697.29,696.32,1.92411035]
[1735527339674,0.2868247,697.29,696.28,3.55901645]
[1735527339877,0.2868247,697.29,696.28,6.27028491]
[1735527340078,0.2868247,697.29,696.3,1.07266547]
[1735527340279,0.2868247,697.29,696.3,4.63168192]
[1735527340580,0.2868247,697.29,696.31,3.55901645]
[1735527341177,0.2868247,697.29,696.32,2.71107972]
[1735527341582,0.2868247,697.29,696.31,1.07266547]
[1735527343478,0.2868247,697.29,696.24,1.07266547]
[1735527344585,0.2868247,697.29,696.23,1.07266547]
[1735527345486,0.2868247,697.29,696.18,1.07266547]
[1735527346884,0.2868247,697.29,695.82,1.28719857]
[1735527346885,0.2868247,697.29,696.2,1.07266547]
[1735527347884,0.2868247,697.29,695.69,2.19002534]
[1735527347885,0.2868247,697.29,696.18,1.07266547]
[1735527351180,0.2868247,697.29,696.13,1.07266547]
[1735527352185,0.2868247,697.29,695.75,1.28719857]
[1735527352186,0.2868247,697.29,696.15,1.07266547]
[1735527353088,0.2868247,697.29,696.22,1.07266547]
[1735527354090,0.2868247,697.29,696.28,1.07266547]
[1735527355290,0.2868247,697.29,696.27,1.07266547]
[1735527356491,0.2868247,697.29,696.28,1.07266547]
[1735527358189,0.2868247,697.29,696.26,1.07266547]
[1735527359589,0.2868247,697.29,696.28,1.07266547]
[1735527362893,0.2868247,697.29,696.17,1.07266547]
[1735527364193,0.2868247,697.29,696.17,4.62989722]
[1735527364499,0.2868247,697.29,696.18,4.63269782]
[1735527364698,0.2868247,697.29,696.19,1.92388584]
[1735527364899,0.2868247,697.29,695.98,3.55696049]
[1735527365095,0.2868247,697.29,695.99,2.99617243]
[1735527365300,0.2868247,697.29,696.0,3.84431681]
[1735527365494,0.2868247,697.29,696.01,1.92042684]
[1735527365698,0.2868247,697.29,696.02,0.28734806]
[1735527365999,0.2868247,697.29,696.02,3.84430855]
[1735527366194,0.2868247,697.29,696.03,4.34188663]
[1735527366397,0.2868247,697.29,696.04,3.55696049]
[1735527366599,0.2868247,697.29,696.04,3.84430029]
[1735527366795,0.2868247,697.29,696.05,4.34188663]
[1735527366996,0.2868247,697.29,696.06,3.84429204]
[1735527367200,0.2868247,697.29,696.07,4.34188663]
[1735527367401,0.2868247,697.29,696.08,3.55696049]
[1735527367800,0.2868247,697.29,696.09,2.70881198]
[1735527367999,0.2868247,697.29,696.1,3.55696049]
[1735527368401,0.2868247,697.29,696.11,2.70881198]
[1735527368600,0.2868247,697.29,696.12,3.55696049]
[1735527369000,0.2868247,697.29,696.13,2.70881198]
[1735527369300,0.2868247,697.29,696.14,3.55696049]
[1735527369499,0.2868247,697.29,696.15,2.70881198]
[1735527369701,0.2868247,697.29,696.16,3.55696049]
[1735527370100,0.2868247,697.29,696.17,2.70881198]
[1735527370300,0.2868247,697.29,696.18,3.55696049]
[1735527370700,0.2868247,697.29,696.19,2.70881198]
[1735527370900,0.2868247,697.29,696.2,3.55696049]
[1735527371502,0.2868247,697.29,696.21,2.70881198]
[1735527371804,0.2868247,697.29,696.55,1.07290401]
[1735527372303,1.06855133,698.05,696.55,1.07290401]
[1735527372498,0.28651653,698.04,696.55,1.07290401]
[1735527372701,0.28651653,698.04,696.44,1.07290401]
[1735527373702,0.28651653,698.04,696.4,1.07290401]
[1735527373901,0.28651653,698.04,696.41,0.28718714]
[1735527384110,0.26391926,698.03,696.41,0.28718714]
[1735527384409,0.28652884,698.01,696.41,0.28718714]
[1735527387711,0.26392884,698.0,696.41,0.28718714]
[1735527388211,0.28654116,697.98,696.41,0.28718714]
[1735527392711,0.26392959,697.97,696.41,0.28718714]
[1735527392908,0.28655347,697.95,696.41,0.28718714]
[1735527393107,0.26392959,697.94,696.41,0.28718714]
[1735527393309,0.28656579,697.92,696.41,0.28718714]
[1735527393509,0.26392959,697.91,696.41,0.28718714]
[1735527393708,0.28657811,697.89,696.41,0.28718714]
[1735527394310,0.28657811,697.89,696.51,1.07290401]
[1735527394511,0.2639304,697.88,696.51,1.07290401]
[1735527395110,0.28657811,697.89,696.51,1.07290401]
[1735527395315,0.26396397,697.88,696.54,1.07290401]
[1735527396113,0.28659043,697.86,696.54,1.07290401]
[1735527396616,0.28659043,697.86,696.41,0.28718714]
[1735527397111,0.2639693,697.85,696.41,0.28718714]
[1735527398711,0.28660275,697.83,696.41,0.28718714]
[1735527399315,0.26397325,697.82,696.41,0.28718714]
[1735527399614,0.28661507,697.8,696.41,0.28718714]
[1735527405116,0.2639661,697.79,696.41,0.28718714]
[1735527405318,0.28662739,697.77,696.41,0.28718714]
[1735527407315,0.26396937,697.76,696.41,0.28718714]
[1735527407523,0.28662739,697.77,696.41,0.28718714]
[1735527407823,0.26397108,697.76,696.41,0.28718714]
[1735527408021,0.28663972,697.74,696.41,0.28718714]
[1735527410821,0.28663972,697.74,696.46,1.07290401]
[1735527412025,0.28663972,697.74,696.45,1.07290401]
[1735527412324,0.28663972,697.74,696.45,2.99734766]
[1735527412526,0.28663972,697.74,696.46,1.92444365]
[1735527412723,0.28663972,697.74,696.45,1.07290401]
[1735527413126,0.28663972,697.74,696.48,1.07290401]
[1735527414128,0.28663972,697.74,696.46,1.07290401]
[1735527415323,0.28663972,697.74,696.49,1.07290401]
[1735527416429,0.28663972,697.74,696.51,1.07290401]
[1735527418528,0.28663972,697.74,696.55,1.07290401]
[1735527419531,1.35519105,697.74,696.58,1.07290401]
[1735527420534,1.35519105,697.74,696.6,1.07290401]
[1735527421431,1.06855133,697.73,696.63,1.07290401]
[1735527421733,0.28664793,697.72,696.63,1.07290401]
[1735527422435,1.06855133,697.71,696.62,1.07290401]
[1735527422733,0.28665615,697.7,696.62,1.07290401]
[1735527423831,1.35520748,697.7,696.63,1.07290401]
[1735527424937,0.28665615,697.7,696.54,1.07290401]
[1735527425936,0.28665615,697.7,696.53,1.07290401]
[1735527427530,0.28665615,697.7,696.04,2.19051236]
[1735527427531,0.28665615,697.7,696.52,1.07290401]
[1735527428429,0.28665615,697.7,688.85,4.35698981]
[1735527428430,0.28665615,697.7,696.67,1.07290401]
[1735527429434,0.28665615,697.7,696.74,1.07290401]
[1735527430434,0.28665615,697.7,696.73,1.07290401]
[1735527431536,0.28665615,697.7,696.84,1.07290401]
[1735527432840,0.28665615,697.7,696.79,1.07290401]
[1735527433938,0.28665615,697.7,696.72,1.07290401]
[1735527434338,0.28665615,697.7,696.72,2.99695908]
[1735527434540,0.28665615,697.7,696.73,1.92405507]
[1735527434741,0.28665615,697.7,696.72,1.07290401]
[1735527434939,0.28665615,697.7,696.68,1.07290401]
[1735527436039,0.28665615,697.7,696.49,1.07290401]
[1735527437037,0.28665615,697.7,696.44,1.07290401]
[1735527437745,0.28665615,697.7,696.48,1.07290401]
[1735527438439,0.28665615,697.7,696.46,1.07290401]
[1735527439942,0.28665615,697.7,696.45,1.07290401]
[1735527440744,0.28665615,697.7,696.42,1.07290401]
[1735527441950,0.28665615,697.7,696.37,2.70864505]
[1735527441951,0.28665615,697.7,696.51,1.07290401]
[1735527443048,0.28665615,697.7,696.5,1.07290401]
[1735527444241,0.28665615,697.7,696.5,2.99585648]
[1735527444449,0.28665615,697.7,696.53,1.07290401]
[1735527444842,0.28665615,697.7,696.53,2.99585648]
[1735527445044,0.28665615,697.7,696.54,1.92295247]
[1735527445247,0.28665615,697.7,696.53,1.07290401]
[1735527445750,0.28665615,697.7,696.47,1.07290401]
[1735527446545,0.28665615,697.7,696.49,1.07290401]
[1735527447350,0.28665615,697.7,696.51,1.07290401]
[1735527448149,0.28665615,697.7,696.52,1.07290401]
[1735527449945,0.28665615,697.7,696.53,1.07290401]
[1735527450949,0.28665615,697.7,696.58,1.07290401]
[1735527451953,0.28665615,697.7,696.58,2.99585648]
[1735527452153,0.28665615,697.7,696.59,1.92295247]
[1735527452747,0.28665615,697.7,696.6,1.07290401]
[1735527453955,0.28665615,697.7,696.39,6.26521647]
[1735527453956,0.28665615,697.7,696.62,1.07290401]
[1735527455152,0.28665615,697.7,696.67,1.07290401]
[1735527456653,0.28665615,697.7,696.74,1.07290401]
[1735527457752,0.28665615,697.7,696.73,1.07290401]
[1735527458547,0.28665615,697.7,696.81,1.07290401]
[1735527459652,0.28665615,697.7,696.57,1.28748481]
[1735527459653,0.28665615,697.7,696.83,1.07290401]
[1735527460454,0.28665615,697.7,696.8,1.07290401]
[1735527461654,0.28665615,697.7,696.78,1.07290401]
[1735527462253,0.28665615,697.7,696.55,1.92295247]
[1735527462254,0.28665615,697.7,696.83,1.07290401]
[1735527463049,0.28665615,697.7,696.8,1.07290401]
[1735527464956,0.28665615,697.7,696.78,1.07290401]
[1735527467054,0.28665615,697.7,696.75,1.07290401]
[1735527468659,0.28665615,697.7,690.49,8.57856362]
[1735527468660,0.28665615,697.7,696.68,1.07290401]
[1735527470659,0.28665615,697.7,696.69,1.07290401]
[1735527471756,0.28665615,697.7,696.73,1.07290401]
[1735527472754,0.28665615,697.7,696.46,1.28748481]
[1735527472755,0.28665615,697.7,696.66,1.07290401]
[1735527473861,0.28665615,697.7,696.36,6.27350645]
[1735527473862,0.28665615,697.7,696.67,1.07290401]
[1735527475159,0.28665615,697.7,696.68,1.07290401]
[1735527476261,0.28665615,697.7,696.7,1.07290401]
[1735527477660,0.28665615,697.7,696.69,1.07290401]
[1735527478857,0.28665615,697.7,696.63,1.07290401]
[1735527479963,0.28665615,697.7,696.51,1.07290401]
[1735527481163,0.28665615,697.7,696.52,1.07290401]
[1735527483668,0.28665615,697.7,696.54,1.07290401]
[1735527484762,0.28665615,697.7,696.41,1.07290401]
[1735527485570,0.28665615,697.7,696.47,1.07290401]
[1735527486374,0.28665615,697.7,696.44,1.07290401]
[1735527487173,0.28665615,697.7,696.43,1.07290401]
[1735527488576,0.28665615,697.7,696.41,1.07290401]
[1735527489476,0.28665615,697.7,696.46,1.07290401]
[1735527490571,0.28665615,697.7,696.43,1.07290401]
[1735527491375,0.28665615,697.7,696.45,1.07290401]
[1735527492279,0.28665615,697.7,696.52,1.07290401]
[1735527493072,0.28665615,697.7,696.51,1.07290401]
[1735527494574,0.28665615,697.7,696.59,1.07290401]
[1735527495878,0.28665615,697.7,694.22,2.99958272]
[1735527495879,0.28665615,697.7,696.58,1.07290401]
[1735527497181,0.28665615,697.7,696.63,1.07290401]
[1735527498379,0.28665615,697.7,696.61,1.07290401]
[1735527499584,0.28665615,697.7,696.36,6.28372009]
[1735527499585,0.28665615,697.7,696.62,1.07290401]
[1735527500682,0.28665615,697.7,696.64,1.07290401]
[1735527501680,0.28665615,697.7,696.6,1.07290401]
[1735527502581,0.28665615,697.7,696.68,1.07290401]
[1735527503583,0.28665615,697.7,696.74,1.07290401]
[1735527504478,0.28665615,697.7,696.69,1.07290401]
[1735527506085,0.28665615,697.7,696.68,1.07290401]
[1735527507287,0.28665615,697.7,696.69,1.07290401]
[1735527508487,0.28665615,697.7,696.26,2.19051236]
[1735527508488,0.28665615,697.7,696.65,3.00193864]
[1735527508882,0.28665615,697.7,696.66,1.92903463]
[1735527509284,0.28665615,697.7,696.65,1.07290401]
[1735527509990,0.28665615,697.7,696.34,1.28748481]
[1735527509991,0.28665615,697.7,696.39,6.2833188]
[1735527510490,0.28665615,697.7,688.24,0.52793861]
[1735527510891,0.28665615,697.7,696.61,1.07450111]
[1735527511890,0.28665615,697.7,696.68,1.07450111]
[1735527513192,0.28665615,697.7,696.57,1.07450111]
[1735527513193,0.28665615,697.7,696.71,1.07450111]
[1735527513993,0.28665615,697.7,696.7,1.07450111]
[1735527514889,0.28665615,697.7,696.71,1.07450111]
[1735527516398,0.28665615,697.7,696.7,1.07450111]
[1735527517395,0.28665615,697.7,696.71,1.07450111]
[1735527518592,0.28665615,697.7,696.69,1.07450111]
[1735527519598,0.28665615,697.7,696.54,6.28225514]
[1735527519599,0.28665615,697.7,696.7,1.07450111]
[1735527520498,0.28665615,697.7,696.74,1.07450111]
[1735527520700,0.28665615,697.7,696.83,1.07450111]
[1735527521799,0.28665615,697.7,696.8,1.07450111]
[1735527522799,0.28665615,697.7,696.84,1.07450111]
[1735527523801,0.28665615,697.7,696.85,1.07450111]
[1735527524803,0.28665615,697.7,696.86,1.07450111]
[1735527526096,0.28665615,697.7,696.86,3.0029314]
[1735527526299,0.28665615,697.7,696.86,1.07450111]
[1735527526797,0.28665615,697.7,696.89,1.07450111]
[1735527529206,0.28665615,697.7,692.86,2.00931562]
[1735527529207,0.28665615,697.7,696.7,1.07450111]
[1735527530609,0.28665615,697.7,696.67,1.07450111]
[1735527531807,0.28665615,697.7,696.62,1.07450111]
[1735527533210,0.28665615,697.7,696.58,1.07450111]
[1735527535111,0.28665615,697.7,696.57,1.07450111]
[1735527537213,0.28665615,697.7,696.55,1.07450111]
[1735527538116,0.28665615,697.7,696.53,1.07450111]
[1735527539415,0.28665615,697.7,696.68,1.07450111]
[1735527541218,0.28665615,697.7,696.7,1.07450111]
[1735527543520,0.28665615,697.7,696.66,1.07450111]
[1735527544415,0.28665615,697.7,696.66,3.00243152]
[1735527544721,0.28665615,697.7,696.67,1.92793041]
[1735527545421,0.28665615,697.7,696.66,1.07450111]
[1735527545720,0.28665615,697.7,696.68,1.07450111]
[1735527547423,0.28665615,697.7,696.68,3.00243152]
[1735527547627,0.28665615,697.7,696.69,3.00243152]
[1735527548123,0.28665615,697.7,696.7,1.92793041]
[1735527548519,0.28665615,697.7,696.69,1.07450111]
[1735527551027,0.28665615,697.7,696.57,6.28103025]
[1735527551028,0.28665615,697.7,696.71,1.07450111]
[1735527553322,0.28665615,697.7,696.54,1.07450111]
[1735527554725,0.28665615,697.7,696.56,1.07450111]
[1735527555927,0.28665615,697.7,696.57,1.07450111]
[1735527556724,0.28665615,697.7,696.6,1.07450111]
[1735527557731,0.28665615,697.7,696.85,1.07450111]
[1735527559633,0.28665615,697.7,696.84,1.07450111]
[1735527560533,0.28665615,697.7,696.79,1.07450111]
[1735527561531,0.28665615,697.7,696.66,1.07450111]
[1735527562634,0.28665615,697.7,696.64,1.07450111]
[1735527563532,0.28665615,697.7,696.63,1.07450111]
[1735527564937,0.28665615,697.7,696.65,1.07450111]
[1735527565934,0.28665615,697.7,696.75,1.07450111]
[1735527567138,0.28665615,697.7,696.78,1.07450111]
[1735527568135,0.28665615,697.7,696.89,1.07450111]
[1735527569040,0.28665615,697.7,696.83,1.07450111]
[1735527569541,1.07012201,698.33,696.83,1.07450111]
[1735527570541,0.28640575,698.31,696.83,1.07450111]
[1735527570848,0.28640575,698.31,696.81,1.07450111]
[1735527572044,0.28640575,698.31,696.76,1.07450111]
[1735527573045,0.28640575,698.31,696.76,1.92715893]
[1735527573245,0.28640575,698.31,696.73,3.55919818]
[1735527573544,0.28640575,698.31,696.73,1.92715893]
[1735527574142,0.28640575,698.31,696.71,3.55878449]
[1735527574549,0.28640575,698.31,696.71,1.92715893]
[1735527574840,0.28640575,698.31,696.69,1.07450111]
[1735527576142,0.26376245,698.3,696.68,1.07450111]
[1735527576349,0.28641805,698.28,696.68,1.07450111]
[1735527576542,0.28641805,698.28,696.68,7.33897193]
[1735527576742,0.28641805,698.28,696.69,6.26447082]
[1735527576943,0.28641805,698.28,696.7,3.55850904]
[1735527577146,0.28641805,698.28,696.71,2.70596178]
[1735527577348,0.28641805,698.28,696.82,1.07450111]
[1735527578347,0.28641805,698.28,696.83,1.07450111]
[1735527579145,0.28641805,698.28,696.58,1.28940133]
[1735527579146,0.28641805,698.28,696.84,1.07450111]
[1735527579951,0.28641805,698.28,696.84,7.33897193]
[1735527580151,0.28641805,698.28,696.85,6.26447082]
[1735527580453,0.28641805,698.28,696.86,3.55850904]
[1735527581952,0.28641805,698.28,696.87,6.26014269]
[1735527582152,0.28641805,698.28,696.88,6.26014269]
[1735527582353,0.28641805,698.28,696.89,3.55850904]
[1735527582752,0.28641805,698.28,696.9,3.55850904]
[1735527582948,0.28641805,698.28,696.86,3.55850904]
[1735527583153,0.28641805,698.28,696.87,6.25939969]
[1735527583356,0.28641805,698.28,696.88,3.55850904]
[1735527583550,0.28641805,698.28,696.89,3.55850904]
[1735527583750,0.28641805,698.28,696.9,3.55850904]
[1735527583955,0.28641805,698.28,696.91,1.92715893]
[1735527584154,0.28641805,698.28,696.89,3.55504688]
[1735527584456,0.28641805,698.28,696.89,1.92715893]
[1735527584648,0.28641805,698.28,696.88,1.07450111]
[1735527585053,0.28641805,698.28,696.85,1.07450111]
[1735527586054,0.28641805,698.28,696.49,1.07450111]
[1735527587454,0.28641805,698.28,696.5,1.07450111]
[1735527589955,0.28641805,698.28,696.49,1.07450111]
[1735527590759,0.28641805,698.28,696.54,1.07450111]
[1735527592155,0.28641805,698.28,696.53,1.07450111]
[1735527593161,0.28641805,698.28,696.57,1.07450111]
[1735527595166,0.28641805,698.28,696.59,1.36161404]
[1735527596362,0.28641805,698.28,696.77,1.07450111]
[1735527597461,0.28641805,698.28,696.65,1.07450111]
[1735527597462,0.28641805,698.28,696.82,1.07450111]
[1735527598661,0.28641805,698.28,696.62,1.62802291]
[1735527598662,0.28641805,698.28,696.84,1.07450111]
[1735527599766,0.28641805,698.28,696.63,0.28709645]
[1735527599767,0.28641805,698.28,697.0,1.07450111]
[1735527600867,0.28641805,698.28,697.07,1.07450111]
[1735527602059,0.28641805,698.28,697.18,1.07450111]
[1735527603065,0.28641805,698.28,697.17,1.07450111]
[1735527603868,0.28641805,698.28,697.19,1.07450111]
[1735527605170,0.28641805,698.28,697.2,1.07450111]
[1735527607169,0.28641805,698.28,696.96,1.28940133]
[1735527607170,0.28641805,698.28,697.17,1.07450111]
[1735527608262,0.28641805,698.28,697.19,1.07450111]
[1735527609471,0.28641805,698.28,697.15,1.07450111]
[1735527610271,0.28641805,698.28,697.05,1.07450111]
[1735527612571,0.28641805,698.28,697.04,1.07450111]
[1735527614074,0.28641805,698.28,696.77,1.92164826]
[1735527614075,1.07012201,698.27,696.87,1.07450111]
[1735527614272,0.28643036,698.25,696.87,1.07450111]
[1735527615177,0.28643036,698.25,696.9,1.07450111]
[1735527616572,0.28643036,698.25,696.85,1.07450111]
[1735527617476,1.07012201,698.24,696.8,1.07450111]
[1735527617669,0.28644266,698.22,696.8,1.07450111]
[1735527618570,0.28644266,698.22,696.66,1.92295923]
[1735527618571,0.28644266,698.22,696.79,1.07450111]
[1735527619574,0.28644266,698.22,696.78,1.07450111]
[1735527620176,0.26382981,698.21,696.78,1.07450111]
[1735527620377,0.28645497,698.19,696.78,1.07450111]
[1735527620678,0.28645497,698.19,696.75,1.07450111]
[1735527621882,0.28645497,698.19,689.79,5.14687065]
[1735527621883,0.28645497,698.19,696.72,1.07450111]
[1735527622775,0.28645497,698.19,696.56,1.07450111]
[1735527623977,0.28645497,698.19,696.57,1.07450111]
[1735527625180,0.28645497,698.19,696.73,1.07450111]
[1735527626178,0.28645497,698.19,696.72,1.07450111]
[1735527627276,0.28645497,698.19,696.78,1.07450111]
[1735527628383,0.28645497,698.19,696.77,1.07450111]
[1735527629180,0.28645497,698.19,696.78,1.07450111]
[1735527631085,0.28645497,698.19,696.67,1.07450111]
[1735527631086,0.28645497,698.19,696.74,1.07450111]
[1735527631780,0.26380636,698.18,696.74,1.07450111]
[1735527631985,0.28646728,698.16,696.74,1.07450111]
[1735527632890,0.28646728,698.16,696.91,1.07450111]
[1735527634285,0.28646728,698.16,696.85,1.07450111]
[1735527635386,0.28646728,698.16,696.81,3.55991657]
[1735527635387,0.28646728,698.16,696.84,1.07450111]
[1735527635785,0.28646728,698.16,696.84,4.63441768]
[1735527635991,0.28646728,698.16,696.85,1.92486811]
[1735527636291,0.28646728,698.16,696.84,1.07450111]
[1735527636491,0.28646728,698.16,696.92,1.07450111]
[1735527637590,0.28646728,698.16,696.48,1.07450111]
[1735527638695,0.28646728,698.16,696.49,1.07450111]
[1735527639893,0.28646728,698.16,696.51,1.07450111]
[1735527640698,0.28646728,698.16,696.53,1.07450111]
[1735527641698,0.28646728,698.16,696.52,1.07450111]
[1735527642996,0.28646728,698.16,696.6,1.07450111]
[1735527644399,0.28646728,698.16,696.61,1.07450111]
[1735527645598,0.28646728,698.16,696.63,1.36159756]
[1735527647003,1.07012201,698.12,696.73,1.07450111]
[1735527647298,0.26385575,698.11,696.73,1.07450111]
[1735527647503,0.26386364,698.1,696.73,1.07450111]
[1735527647706,0.28650011,698.08,696.73,1.07450111]
[1735527648207,1.07012201,698.04,696.76,1.07450111]
[1735527648405,0.28652474,698.02,696.76,1.07450111]
[1735527649505,0.28652474,698.02,696.63,0.28709645]
[1735527649506,1.35664675,698.02,696.77,1.07450111]
[1735527650301,0.28652474,698.02,696.76,1.07450111]
[1735527651401,0.28652474,698.02,696.69,1.07450111]
[1735527652307,0.28652474,698.02,696.67,1.07450111]